bitfinex/quotes_SOLUSD_20251120
["timestamp","ask_amount","ask_price","bid_price","bid_amount"]
[1763660707000,50.0,132.35,132.33,12.41763868]
[1763660707222,50.0,132.35,132.31,0.71]
[1763660707223,50.0,132.35,132.34,12.41763868]
[1763660708691,50.0,132.35,132.33,12.41763868]
[1763660708893,50.0,132.35,132.34,7.93648443]
[1763660709307,1.86,132.37,132.34,8.64648443]
[1763660709308,51.86,132.37,132.34,8.64648443]
[1763660709495,51.86,132.37,132.36,7.93648443]
[1763660709821,1.86,132.37,132.36,7.93648443]
[1763660710124,50.0,132.41,132.36,8.64648443]
[1763660710309,1.86,132.4,132.37,0.71]
[1763660710512,1.86,132.4,132.39,7.93648443]
[1763660711409,1.86,132.4,132.39,8.64648443]
[1763660711609,1.86,132.4,132.35,18.12096]
[1763660711795,1.86,132.4,132.39,7.93648443]
[1763660712196,1.86,132.4,132.36,0.71]
[1763660712590,1.86,132.4,132.39,7.93648443]
[1763660712786,1.86,132.4,132.38,7.93648443]
[1763660713191,1.86,132.4,132.36,0.71]
[1763660713192,1.86,132.4,132.39,7.93648443]
[1763660714136,50.0,132.39,132.31,0.71]
[1763660714288,50.0,132.36,132.32,7.93648443]
[1763660714492,51.86,132.36,132.32,26.76744443]
[1763660714689,51.86,132.36,132.33,0.71]
[1763660715493,51.86,132.36,132.35,7.93648443]
[1763660717298,51.86,132.36,132.31,18.12096]
[1763660717500,102.6,132.35,132.32,0.71]
[1763660718700,102.6,132.35,132.34,7.93648443]
[1763660719223,102.6,132.35,132.34,8.64648443]
[1763660719427,51.86,132.36,132.34,7.93648443]
[1763660719607,51.86,132.36,132.35,7.93648443]
[1763660720804,102.6,132.35,132.28,0.2]
[1763660721004,57.93648443,132.33,132.28,0.2]
[1763660721332,50.0,132.31,132.28,8.13648443]
[1763660721512,68.12096,132.29,132.28,0.2]
[1763660721716,79.76978769,132.29,132.28,0.2]
[1763660722108,87.70627212,132.29,132.28,0.2]
[1763660723235,77.90978769,132.29,132.28,0.2]
[1763660723436,87.70627212,132.29,132.28,0.2]
[1763660723736,51.86,132.29,132.28,0.2]
[1763660723937,1.86,132.3,132.28,8.85648443]
[1763660724143,51.86,132.31,132.29,7.93648443]
[1763660724342,51.86,132.31,132.3,7.93648443]
[1763660724647,51.86,132.31,132.28,0.92]
[1763660724811,51.86,132.31,132.29,7.93648443]
[1763660725224,51.86,132.31,132.28,0.92]
[1763660725525,51.86,132.31,132.28,0.2]
[1763660725526,50.0,132.29,132.28,0.2]
[1763660726331,50.0,132.29,132.28,8.13648443]
[1763660726544,50.0,132.29,132.28,0.2]
[1763660727135,11.64882769,132.31,132.28,8.85648443]
[1763660727136,51.86,132.31,132.28,8.85648443]
[1763660727312,51.86,132.31,132.29,7.93648443]
[1763660727518,51.86,132.31,132.3,7.93648443]
[1763660727952,1.86,132.31,132.3,8.65648443]
[1763660728239,1.86,132.33,132.3,8.65648443]
[1763660728443,1.86,132.33,132.32,7.93648443]
[1763660728444,51.86,132.33,132.32,7.93648443]
[1763660729544,51.86,132.33,132.31,7.93648443]
[1763660729920,51.86,132.33,132.31,0.7]
[1763660730118,51.86,132.33,132.31,8.63648443]
[1763660730723,51.86,132.33,132.32,7.93648443]
[1763660731445,51.86,132.33,132.31,7.93648443]
[1763660732019,51.86,132.33,132.29,0.7]
[1763660732219,51.86,132.33,132.3,7.93648443]
[1763660732441,51.86,132.33,132.29,0.7]
[1763660732721,51.86,132.33,132.31,7.93648443]
[1763660732951,102.6,132.32,132.31,7.93648443]
[1763660733241,1.86,132.33,132.32,0.7]
[1763660733442,1.86,132.33,132.32,8.63648443]
[1763660734762,1.86,132.36,132.32,8.63648443]
[1763660734957,1.86,132.36,132.35,7.93648443]
[1763660735566,1.86,132.36,132.33,0.7]
[1763660735865,1.86,132.36,132.34,7.93648443]
[1763660737047,1.86,132.36,132.29,18.12096]
[1763660737245,1.86,132.36,132.34,7.93648443]
[1763660737435,1.86,132.36,132.3,0.7]
[1763660737637,1.86,132.36,132.33,7.93648443]
[1763660737843,1.86,132.36,132.34,7.93648443]
[1763660739063,1.86,132.36,132.35,0.7]
[1763660739267,1.86,132.36,132.34,7.93648443]
[1763660739565,1.86,132.36,132.35,7.93648443]
[1763660739938,50.0,132.37,132.35,7.93648443]
[1763660739939,50.0,132.39,132.35,0.7]
[1763660740142,50.0,132.39,132.32,26.05744443]
[1763660740143,50.0,132.39,132.38,7.93648443]
[1763660740839,1.86,132.4,132.38,8.63648443]
[1763660741045,1.86,132.4,132.39,8.63648443]
[1763660741842,50.0,132.41,132.39,8.63648443]
[1763660742042,1.86,132.43,132.4,8.63648443]
[1763660742245,1.86,132.45,132.42,7.93648443]
[1763660742547,1.86,132.45,132.44,7.93648443]
[1763660743143,1.86,132.45,132.44,8.63648443]
[1763660744235,50.0,132.5,132.44,8.63648443]
[1763660744443,50.0,132.5,132.49,7.93648443]
[1763660745066,50.0,132.5,132.33,36.25096481]
[1763660745270,50.0,132.48,132.42,18.12096]
[1763660745441,50.0,132.44,132.42,7.93648443]
[1763660745644,1.86,132.43,132.4,0.7]
[1763660745971,1.86,132.43,132.41,7.93648443]
[1763660746466,1.86,132.43,132.42,7.93648443]
[1763660746672,1.86,132.43,132.42,8.63648443]
[1763660746964,50.0,132.46,132.42,0.7]
[1763660746965,51.86,132.46,132.42,0.7]
[1763660747152,51.86,132.46,132.43,7.93648443]
[1763660747747,50.0,132.44,132.42,7.93648443]
[1763660747947,50.0,132.44,132.4,7.93648443]
[1763660748148,50.0,132.42,132.39,7.93648443]
[1763660748346,1.86,132.41,132.39,8.63648443]
[1763660748759,1.86,132.41,132.38,7.93648443]
[1763660748958,1.86,132.41,132.39,7.93648443]
[1763660749166,1.86,132.41,132.39,8.63648443]
[1763660750070,1.86,132.41,132.37,7.93648443]
[1763660750071,50.0,132.4,132.37,7.93648443]
[1763660750639,57.93648443,132.4,132.33,0.67]
[1763660750842,50.0,132.38,132.34,7.93648443]
[1763660751070,1.86,132.37,132.35,7.93648443]
[1763660751367,1.86,132.37,132.33,0.67]
[1763660751773,1.86,132.37,132.35,7.93648443]
[1763660752068,50.0,132.36,132.31,0.67]
[1763660752268,50.0,132.36,132.32,8.60648443]
[1763660752442,50.0,132.36,132.32,0.67]
[1763660752643,50.0,132.36,132.32,8.60648443]
[1763660752837,50.0,132.36,132.33,8.60648443]
[1763660753143,50.0,132.36,132.34,7.93648443]
[1763660753372,1.86,132.36,132.35,7.93648443]
[1763660754063,1.86,132.36,132.35,8.60648443]
[1763660754444,1.86,132.38,132.35,8.60648443]
[1763660754662,1.86,132.38,132.36,8.60648443]
[1763660755356,1.86,132.38,132.32,7.93648443]
[1763660755357,51.86,132.38,132.33,7.93648443]
[1763660755867,51.86,132.38,132.33,8.60648443]
[1763660756057,59.79648443,132.38,132.33,8.60648443]
[1763660756263,50.0,132.36,132.32,7.93648443]
[1763660756769,50.0,132.36,132.3,7.93648443]
[1763660756770,50.0,132.34,132.3,7.93648443]
[1763660756969,1.86,132.33,132.3,7.93648443]
[1763660757158,1.86,132.33,132.3,8.60648443]
[1763660757475,1.86,132.33,132.31,7.93648443]
[1763660757655,1.86,132.33,132.3,8.60648443]
[1763660757850,1.86,132.33,132.3,0.67]
[1763660758074,1.86,132.33,132.3,8.60648443]
[1763660759586,1.86,132.33,132.31,0.67]
[1763660759880,1.86,132.33,132.3,8.60648443]
[1763660760499,1.86,132.33,132.28,0.2]
[1763660760500,50.0,132.3,132.28,0.2]
[1763660760772,11.64882769,132.29,132.28,0.2]
[1763660762385,27.14446247,132.29,132.28,0.2]
[1763660762548,21.58531211,132.29,132.28,0.2]
[1763660762744,11.64882769,132.29,132.28,0.2]
[1763660763085,29.76978769,132.29,132.28,0.2]
[1763660763655,11.64882769,132.29,132.28,0.2]
[1763660763865,69.58531212,132.29,132.28,0.2]
[1763660764076,79.14446246,132.29,132.28,0.2]
[1763660764280,9.78882769,132.29,132.28,0.2]
[1763660764480,19.58531212,132.29,132.28,0.2]
[1763660764902,87.70627212,132.29,132.28,0.2]
[1763660765108,77.14446247,132.29,132.28,0.2]
[1763660765405,71.20797803,132.29,132.28,0.2]
[1763660765565,79.14446246,132.29,132.28,0.2]
[1763660766460,94.32531211,132.29,132.28,0.2]
[1763660766762,11.64882769,132.29,132.28,0.2]
[1763660767095,19.58531212,132.29,132.28,0.2]
[1763660767298,27.14446247,132.29,132.28,0.2]
[1763660767589,77.90978769,132.25,132.24,0.1]
[1763660767806,87.70627212,132.25,132.24,0.1]
[1763660767958,61.64882769,132.25,132.24,0.1]
[1763660769867,69.58531212,132.25,132.24,0.1]
[1763660770081,87.70627212,132.25,132.24,0.1]
[1763660770466,79.76978769,132.25,132.24,0.1]
[1763660770976,87.70627212,132.25,132.24,0.1]
[1763660771373,79.76978769,132.25,132.24,0.1]
[1763660771793,69.58531212,132.25,132.24,0.1]
[1763660771993,77.14674879,132.25,132.24,0.1]
[1763660772194,69.58531212,132.25,132.24,0.1]
[1763660772395,77.14674879,132.25,132.24,0.1]
[1763660772701,69.58531212,132.25,132.24,0.1]
[1763660773000,61.64882769,132.25,132.24,0.1]
[1763660773183,69.58531212,132.25,132.24,0.1]
[1763660773880,77.14674879,132.25,132.24,0.1]
[1763660774081,87.70627212,132.25,132.24,0.1]
[1763660775093,95.26770879,132.25,132.24,0.1]
[1763660775274,77.14674879,132.25,132.24,0.1]
[1763660776208,79.14674878,132.25,132.24,0.1]
[1763660776706,101.88674878,132.25,132.24,0.1]
[1763660777004,101.88674878,132.25,132.18,70.45454545]
[1763660777005,59.78882769,132.19,132.18,70.45454545]
[1763660777181,1.86,132.19,132.18,78.39102988]
[1763660777379,1.86,132.21,132.18,78.39102988]
[1763660777607,1.86,132.21,132.19,0.67]
[1763660777779,1.86,132.21,132.19,8.60648443]
[1763660778420,1.86,132.21,132.18,70.45454545]
[1763660778627,67.72531212,132.19,132.18,70.45454545]
[1763660778806,85.84627212,132.19,132.18,70.45454545]
[1763660779680,135.84627212,132.19,132.18,70.45454545]
[1763660779881,148.03018086,132.19,132.18,70.45454545]
[1763660780086,150.03018085,132.19,132.18,70.45454545]
[1763660780691,148.03018086,132.19,132.18,70.45454545]
[1763660781187,142.46531211,132.19,132.18,70.45454545]
[1763660781508,127.29018085,132.19,132.18,70.45454545]
[1763660781919,117.72531212,132.19,132.18,70.45454545]
[1763660782087,125.29018086,132.19,132.18,70.45454545]
[1763660782503,117.72531212,132.19,132.18,70.45454545]
[1763660782703,59.78882769,132.19,132.18,70.45454545]
[1763660783035,67.72531212,132.19,132.18,70.45454545]
[1763660783182,85.84627212,132.19,132.18,70.45454545]
[1763660784513,85.84627212,132.19,132.18,71.17454545]
[1763660784514,59.78882769,132.19,132.18,71.17454545]
[1763660784818,61.64882769,132.19,132.18,70.45454545]
[1763660785008,69.58531212,132.19,132.18,70.45454545]
[1763660785210,61.64882769,132.19,132.18,70.45454545]
[1763660785799,9.78882769,132.2,132.18,79.11102988]
[1763660786011,51.86,132.21,132.19,8.65648443]
[1763660786213,50.0,132.23,132.2,7.93648443]
[1763660786513,7.93648443,132.25,132.2,7.93648443]
[1763660786514,1.86,132.22,132.2,0.72]
[1763660786720,1.86,132.22,132.18,70.45454545]
[1763660786721,1.86,132.22,132.21,0.72]
[1763660786937,51.86,132.25,132.21,0.72]
[1763660787343,1.14,132.25,132.21,18.84096]
[1763660787512,1.14,132.25,132.24,7.93648443]
[1763660787707,1.14,132.25,132.24,8.65648443]
[1763660789305,50.0,132.29,132.24,8.65648443]
[1763660789526,1.86,132.28,132.25,8.65648443]
[1763660789945,1.86,132.28,132.27,7.93648443]
[1763660790114,1.86,132.28,132.27,8.64648443]
[1763660790435,1.86,132.28,132.27,0.71]
[1763660790639,1.86,132.28,132.27,8.64648443]
[1763660790839,1.86,132.28,132.27,0.71]
[1763660791048,1.86,132.28,132.27,8.64648443]
[1763660791634,1.86,132.28,132.26,0.71]
[1763660792444,1.86,132.28,132.26,8.64648443]
[1763660792614,1.86,132.28,132.26,0.71]
[1763660792807,1.86,132.28,132.27,0.71]
[1763660794349,1.86,132.28,132.25,8.64648443]
[1763660794510,1.86,132.28,132.27,0.71]
[1763660795639,50.0,132.34,132.27,8.64648443]
[1763660795829,1.86,132.33,132.3,7.93648443]
[1763660796211,1.86,132.33,132.32,7.93648443]
[1763660796412,1.86,132.33,132.32,8.64648443]
[1763660796718,50.0,132.37,132.32,8.64648443]
[1763660796932,50.0,132.4,132.36,7.93648443]
[1763660797130,1.86,132.39,132.38,7.93648443]
[1763660797338,1.86,132.39,132.33,0.71]
[1763660797646,1.86,132.39,132.36,7.93648443]
[1763660797855,1.86,132.39,132.37,8.64648443]
[1763660798051,1.86,132.39,132.37,0.71]
[1763660798544,57.93648443,132.38,132.33,8.64648443]
[1763660798717,9.78882769,132.37,132.33,0.71]
[1763660798915,9.78882769,132.37,132.31,8.64648443]
[1763660798916,9.78882769,132.35,132.31,8.64648443]
[1763660799241,1.86,132.34,132.31,8.64648443]
[1763660799442,1.86,132.34,132.33,7.93648443]
[1763660799610,18.12096,132.39,132.33,8.64648443]
[1763660799611,1.86,132.37,132.33,8.64648443]
[1763660799811,1.86,132.37,132.34,8.64648443]
[1763660800113,1.86,132.37,132.34,0.71]
[1763660800323,1.86,132.37,132.35,8.64648443]
[1763660800648,1.86,132.37,132.35,0.71]
[1763660800851,1.86,132.37,132.36,0.71]
[1763660801215,1.86,132.37,132.36,8.64648443]
[1763660801414,1.86,132.37,132.36,0.71]
[1763660801742,1.86,132.37,132.36,8.64648443]
[1763660802246,1.86,132.37,132.34,8.64648443]
[1763660802414,1.86,132.37,132.34,0.71]
[1763660802927,59.78882769,132.36,132.33,7.93648443]
[1763660803117,59.78882769,132.36,132.32,0.71]
[1763660803118,67.72531212,132.36,132.32,0.71]
[1763660803314,67.72531212,132.36,132.33,0.71]
[1763660803515,59.78882769,132.36,132.33,0.71]
[1763660803945,67.72531212,132.36,132.31,8.64648443]
[1763660804116,9.78882769,132.34,132.28,0.71]
[1763660804317,18.80096,132.35,132.28,0.71]
[1763660804318,50.0,132.31,132.28,0.71]
[1763660804542,102.6,132.3,132.28,0.71]
[1763660804743,1.86,132.29,132.28,0.71]
[1763660805048,1.86,132.29,132.28,8.64648443]
[1763660805630,1.86,132.33,132.28,8.64648443]
[1763660805829,102.6,132.34,132.32,7.93648443]
[1763660806044,102.6,132.34,132.31,7.93648443]
[1763660806250,102.6,132.34,132.32,0.71]
[1763660806860,102.6,132.34,132.31,7.93648443]
[1763660807040,50.0,132.35,132.19,1.99999999]
[1763660807041,67.72531212,132.33,132.19,1.99999999]
[1763660807220,1.86,132.32,132.29,7.93648443]
[1763660807548,1.86,132.32,132.3,8.64648443]
[1763660807845,1.86,132.32,132.3,0.71]
[1763660808154,50.0,132.35,132.27,18.12096]
[1763660808155,51.86,132.35,132.31,8.64648443]
[1763660808456,102.6,132.34,132.32,8.64648443]
[1763660808624,102.6,132.34,132.33,7.93648443]
[1763660808943,103.74,132.38,132.33,0.71]
[1763660809261,151.88,132.37,132.33,8.64648443]
[1763660809450,152.56,132.37,132.33,8.64648443]
[1763660809625,0.68,132.36,132.3,18.83096]
[1763660809831,102.56,132.36,132.32,7.93648443]
[1763660810031,101.88,132.36,132.33,7.93648443]
[1763660810244,101.88,132.35,132.33,7.93648443]
[1763660810453,101.88,132.35,132.33,8.61648443]
[1763660810623,101.88,132.35,132.34,0.68]
[1763660810827,101.38,132.35,132.34,8.61648443]
[1763660811537,1.86,132.38,132.34,8.61648443]
[1763660811737,1.86,132.38,132.37,7.93648443]
[1763660811937,1.86,132.38,132.35,0.68]
[1763660812138,52.55,132.38,132.35,7.93648443]
[1763660812522,51.86,132.38,132.35,8.61648443]
[1763660812948,51.86,132.38,132.35,0.68]
[1763660813157,51.86,132.38,132.35,8.61648443]
[1763660813361,51.86,132.38,132.36,7.93648443]
[1763660813533,1.86,132.38,132.36,7.93648443]
[1763660813936,1.86,132.38,132.32,7.93648443]
[1763660814131,8.13648443,132.41,132.32,7.93648443]
[1763660814132,0.2,132.41,132.34,9.78882769]
[1763660814366,0.2,132.41,132.35,18.12096]
[1763660814555,0.2,132.41,132.4,7.93648443]
[1763660814746,0.2,132.41,132.35,18.12096]
[1763660815067,2.75,132.41,132.39,7.93648443]
[1763660815366,2.75,132.41,132.33,19.98096]
[1763660815367,59.78882769,132.4,132.37,7.93648443]
[1763660815665,68.41531212,132.4,132.35,7.93648443]
[1763660815868,0.69,132.39,132.35,7.93648443]
[1763660816233,0.69,132.39,132.32,18.12096]
[1763660816450,59.78882769,132.38,132.32,18.12096]
[1763660816653,59.78882769,132.38,132.34,7.93648443]
[1763660816654,1.86,132.37,132.34,7.93648443]
[1763660816941,2.55,132.37,132.33,7.93648443]
[1763660817333,18.12096,132.35,132.33,7.93648443]
[1763660817642,18.12096,132.35,132.26,27.90978769]
[1763660817852,18.81096,132.35,132.32,7.93648443]
[1763660818156,0.69,132.34,132.32,7.93648443]
[1763660818371,1.86,132.33,132.25,1.86]
[1763660818532,0.69,132.32,132.29,7.93648443]
[1763660819043,1.86,132.33,132.3,7.93648443]
[1763660819365,1.86,132.33,132.31,7.93648443]
[1763660819732,1.86,132.33,132.3,7.93648443]
[1763660820045,2.55,132.33,132.3,7.93648443]
[1763660820347,0.69,132.32,132.27,18.12096]
[1763660820740,9.79648443,132.33,132.3,7.93648443]
[1763660820741,1.86,132.33,132.3,7.93648443]
[1763660821164,1.86,132.33,132.31,7.93648443]
[1763660821461,50.69,132.32,132.21,1.86]
[1763660821632,17.72531212,132.29,132.18,92.81552707]
[1763660821831,1.86,132.28,132.24,7.93648443]
[1763660822031,2.55,132.28,132.25,7.93648443]
[1763660822565,1.86,132.29,132.27,7.93648443]
[1763660822731,50.69,132.33,132.28,7.93648443]
[1763660822935,102.07,132.36,132.32,7.93648443]
[1763660823262,0.69,132.35,132.33,7.93648443]
[1763660823959,1.86,132.36,132.34,7.93648443]
[1763660824160,1.86,132.36,132.3,18.12096]
[1763660824340,1.86,132.36,132.33,7.93648443]
[1763660824543,2.55,132.36,132.33,7.93648443]
[1763660825066,0.69,132.36,132.34,7.93648443]
[1763660825277,1.86,132.39,132.35,7.93648443]
[1763660825432,0.2,132.41,132.38,7.93648443]
[1763660825632,0.2,132.41,132.4,12.42028343]
[1763660826138,0.2,132.41,132.36,19.98096]
[1763660826333,0.2,132.41,132.36,1.86]
[1763660826639,0.2,132.41,132.4,12.42028343]
[1763660827764,0.2,132.41,132.37,18.12096]
[1763660827947,0.89,132.41,132.38,12.42028343]
[1763660828148,0.89,132.41,132.4,12.42028343]
[1763660831182,0.2,132.41,132.39,12.42028343]
[1763660831400,0.2,132.41,132.4,12.42028343]
[1763660831685,0.2,132.42,132.4,12.42028343]
[1763660831886,0.2,132.42,132.41,22.20911112]
[1763660832091,1.86,132.51,132.44,18.12096]
[1763660832282,0.69,132.5,132.47,12.42028343]
[1763660832459,0.69,132.5,132.48,12.42028343]
[1763660833164,0.2,132.52,132.49,12.42028343]
[1763660833491,0.89,132.52,132.44,27.90978769]
[1763660833693,0.89,132.52,132.51,12.42028343]
[1763660833863,0.89,132.52,132.45,18.12096]
[1763660834287,50.69,132.51,132.48,12.42028343]
[1763660834463,50.69,132.51,132.47,12.42028343]
[1763660834805,59.78882769,132.47,132.35,1.86]
[1763660834963,18.12096,132.43,132.4,12.42028343]
[1763660835167,74.06911112,132.42,132.3,14.28028343]
[1763660835390,12.42028343,132.41,132.37,12.42028343]
[1763660835628,50.69,132.4,132.33,18.12096]
[1763660835764,50.69,132.4,132.36,12.42028343]
[1763660835964,2.55,132.39,132.36,12.42028343]
[1763660836371,0.69,132.38,132.37,12.42028343]
[1763660836590,0.69,132.38,132.36,12.42028343]
[1763660836899,2.55,132.39,132.37,12.42028343]
[1763660837205,0.69,132.38,132.37,12.42028343]
[1763660837388,0.69,132.38,132.36,12.42028343]
[1763660837593,0.69,132.38,132.32,18.12096]
[1763660837594,50.69,132.38,132.25,1.99999999]
[1763660837904,0.69,132.38,132.3,12.42028343]
[1763660838202,1.86,132.39,132.36,12.42028343]
[1763660838407,2.55,132.39,132.36,12.42028343]
[1763660838579,1.86,132.39,132.31,18.12096]
[1763660838897,2.55,132.39,132.37,12.42028343]
[1763660839105,2.55,132.39,132.31,18.12096]
[1763660839106,0.69,132.38,132.36,12.42028343]
[1763660839407,0.69,132.38,132.31,18.12096]
[1763660839408,50.0,132.35,132.31,12.42028343]
[1763660839581,2.55,132.34,132.31,12.42028343]
[1763660840104,0.69,132.33,132.31,12.42028343]
[1763660841014,1.86,132.34,132.31,12.42028343]
[1763660841213,0.67,132.36,132.33,12.42028343]
[1763660841412,0.67,132.36,132.35,12.42028343]
[1763660841709,0.67,132.36,132.34,12.42028343]
[1763660841916,0.67,132.36,132.28,19.98096]
[1763660842125,50.67,132.36,132.32,12.42028343]
[1763660842491,0.67,132.35,132.31,12.42028343]
[1763660842690,1.86,132.34,132.31,12.42028343]
[1763660842923,51.86,132.34,132.3,12.42028343]
[1763660843212,51.86,132.34,132.27,22.17267384]
[1763660843213,62.42028343,132.32,132.27,34.59295727]
[1763660843392,0.67,132.33,132.3,12.42028343]
[1763660843816,50.0,132.36,132.32,12.42028343]
[1763660844021,0.67,132.36,132.35,12.42028343]
[1763660844189,0.67,132.36,132.3,12.42028343]
[1763660844190,0.67,132.36,132.33,12.42028343]
[1763660844395,63.09028343,132.36,132.28,19.98096]
[1763660844589,63.09028343,132.36,132.31,12.42028343]
[1763660844822,10.45882769,132.35,132.31,12.42028343]
[1763660845123,2.53,132.34,132.3,12.42028343]
[1763660845617,0.67,132.33,132.3,12.42028343]
[1763660845830,13.09028343,132.33,132.25,1.86]
[1763660846119,50.0,132.32,132.29,12.42028343]
[1763660846305,0.67,132.32,132.28,12.42028343]
[1763660846630,0.67,132.31,132.26,12.42028343]
[1763660846794,13.09028343,132.31,132.26,12.42028343]
[1763660847020,1.86,132.3,132.28,12.42028343]
[1763660847215,1.86,132.3,132.29,12.42028343]
[1763660847437,0.67,132.33,132.29,12.42028343]
[1763660847755,2.53,132.32,132.29,12.42028343]
[1763660847916,0.67,132.33,132.3,12.42028343]
[1763660848122,1.86,132.34,132.32,12.42028343]
[1763660848323,0.67,132.33,132.25,18.12096]
[1763660848539,0.67,132.33,132.3,12.42028343]
[1763660849436,1.86,132.34,132.32,12.42028343]
[1763660849754,0.72,132.36,132.33,12.42028343]
[1763660849918,2.58,132.37,132.35,12.42028343]
[1763660850121,2.58,132.37,132.36,12.42028343]
[1763660850122,1.86,132.37,132.36,12.42028343]
[1763660850427,0.72,132.37,132.36,12.42028343]
[1763660850674,19.98096,132.39,132.36,12.42028343]
[1763660850964,27.90978769,132.37,132.35,12.42028343]
[1763660851266,0.72,132.36,132.34,12.42028343]
[1763660851558,11.64882769,132.35,132.26,1.86]
[1763660851762,9.78882769,132.33,132.3,12.42028343]
[1763660851923,101.38,132.32,132.3,12.42028343]
[1763660852120,102.1,132.32,132.3,12.42028343]
[1763660852722,0.72,132.31,132.3,12.42028343]
[1763660852923,2.58,132.31,132.27,12.42028343]
[1763660853123,101.38,132.3,132.27,12.42028343]
[1763660853356,102.1,132.3,132.28,12.42028343]
[1763660854041,102.1,132.3,132.27,12.42028343]
[1763660854429,103.96,132.3,132.27,12.42028343]
[1763660854636,0.72,132.29,132.27,12.42028343]
[1763660855170,101.38,132.28,132.27,12.42028343]
[1763660855340,9.78882769,132.28,132.24,12.42028343]
[1763660855542,0.72,132.27,132.24,12.42028343]
[1763660855732,1.86,132.26,132.23,12.42028343]
[1763660855931,1.86,132.26,132.24,12.42028343]
[1763660856157,101.38,132.25,132.24,12.42028343]
[1763660856554,102.1,132.25,132.24,12.42028343]
[1763660856763,102.1,132.25,132.19,18.12096]
[1763660857057,101.38,132.24,132.23,12.42028343]
[1763660857862,102.1,132.24,132.23,12.42028343]
[1763660858064,102.1,132.24,132.18,88.57550545]
[1763660858361,102.1,132.23,132.18,70.45454545]
[1763660858663,0.72,132.23,132.18,70.45454545]
[1763660858875,51.86,132.26,132.18,70.45454545]
[1763660858876,12.42028343,132.21,132.18,70.45454545]
[1763660859164,1.86,132.2,132.18,70.45454545]
[1763660859344,10.50882769,132.19,132.18,70.45454545]
[1763660859546,41.05007112,132.19,132.18,69.73454545]
[1763660860085,28.62978769,132.19,132.18,69.73454545]
[1763660860933,41.05007112,132.19,132.18,69.73454545]
[1763660861150,49.76641455,132.16,132.14,0.1]
[1763660861366,11.64882769,132.15,132.14,0.1]
[1763660861577,62.36882769,132.15,132.14,0.1]
[1763660861868,74.78911112,132.15,132.14,0.1]
[1763660862249,62.36882769,132.15,132.14,0.1]
[1763660863790,12.36882769,132.15,132.14,0.1]
[1763660864157,62.36882769,132.15,132.14,0.1]
[1763660864375,74.78911112,132.15,132.14,0.1]
[1763660864850,62.36882769,132.15,132.14,0.1]
[1763660865046,74.78911112,132.15,132.14,0.1]
[1763660865250,62.36882769,132.15,132.14,0.1]
[1763660865447,74.78911112,132.15,132.14,0.1]
[1763660865693,62.36882769,132.15,132.14,0.1]
[1763660866572,12.36882769,132.15,132.14,0.1]
[1763660866958,1.86,132.15,132.14,0.1]
[1763660867275,2.58,132.15,132.14,0.1]
[1763660867449,1.86,132.15,132.14,0.1]
[1763660867774,10.50882769,132.18,132.14,12.52028343]
[1763660867953,10.50882769,132.18,132.14,0.1]
[1763660867954,9.78882769,132.16,132.14,0.1]
[1763660868159,9.78882769,132.16,132.14,12.52028343]
[1763660868354,10.50882769,132.16,132.14,12.52028343]
[1763660868561,9.78882769,132.16,132.14,0.1]
[1763660868764,1.86,132.15,132.14,12.52028343]
[1763660868960,1.86,132.15,132.14,0.1]
[1763660869159,1.86,132.15,132.14,12.52028343]